bitfinex-derivatives/quotes_SOLF0:USTF0_20230103
["timestamp","ask_amount","ask_price","bid_price","bid_amount"]
[1672750680134,49.30951881,11.796,11.787,0.06783922]
[1672750682121,49.24799794,11.796,11.787,4.06783922]
[1672750684439,49.24799794,11.796,11.787,0.06783922]
[1672750685176,0.06271881,11.796,11.787,4.06783922]
[1672750689272,0.06271881,11.796,11.79,50.0]
[1672750689481,0.06271881,11.796,11.791,4.0]
[1672750691476,0.06271881,11.796,11.79,50.0]
[1672750691686,0.06271881,11.796,11.79,66.88]
[1672750693473,0.06271881,11.796,11.791,4.0]
[1672750696732,0.1769924,11.8,11.796,0.1583753]
[1672750700731,0.07002714,11.802,11.796,0.1583753]
[1672750704932,0.07002714,11.802,11.796,7.53e-05]
[1672750705143,16.92,11.801,11.796,7.53e-05]
[1672750705456,4.0,11.8,11.796,7.53e-05]
[1672750710288,16.92,11.801,11.796,7.53e-05]
[1672750718593,4.0,11.8,11.796,7.53e-05]
[1672750719645,3.81231748,11.8,11.796,7.53e-05]
[1672750721222,16.92,11.801,11.796,7.53e-05]
[1672750729213,0.07002714,11.802,11.796,7.53e-05]
[1672750733411,47.5646,11.804,11.802,0.06769228]
[1672750744451,16.96,11.806,11.802,0.06769228]
[1672750744661,0.06940565,11.807,11.802,0.06769228]
[1672750746337,48.196,11.809,11.807,0.13694239]
[1672750747183,16.91,11.811,11.807,0.13694239]
[1672750747607,877.07096408,11.813,11.807,0.13694239]
[1672750748347,49.89620471,11.812,11.807,0.13694239]
[1672750748653,4.0,11.811,11.807,0.13694239]
[1672750749071,877.07096408,11.813,11.807,0.13694239]
[1672750749595,49.89620471,11.812,11.807,0.13694239]
[1672750749812,4.0,11.811,11.807,0.13694239]
[1672750750438,49.89620471,11.812,11.807,0.13694239]
[1672750751391,66.74620471,11.812,11.807,0.13694239]
[1672750752226,16.85,11.812,11.807,0.13694239]
[1672750752437,66.74620471,11.812,11.807,0.13694239]
[1672750759168,16.85,11.812,11.807,0.13694239]
[1672750759482,66.74620471,11.812,11.807,0.13694239]
[1672750761375,575.0,11.823,11.81,16.97]
[1672750761578,99.17230471,11.822,11.81,16.97]
[1672750761793,4.0,11.821,11.811,4.0]
[1672750762425,0.06466647,11.82,11.812,0.06802146]
[1672750767677,0.08336562,11.812,11.811,4.0]
[1672750767892,4.0,11.821,11.811,4.0]
[1672750768101,4.0,11.821,11.812,16.97]
[1672750768312,99.17230471,11.822,11.813,4.0]
[1672750768733,99.24265283,11.822,11.813,4.06161214]
[1672750771149,49.34644812,11.822,11.813,4.06161214]
[1672750771360,99.24265283,11.822,11.813,4.06161214]
[1672750771672,49.34644812,11.822,11.813,4.06161214]
[1672750772087,49.34644812,11.822,11.816,4.0]
[1672750774932,49.34644812,11.822,11.815,16.97]
[1672750775878,99.24265283,11.822,11.813,0.06161214]
[1672750776300,116.20265283,11.822,11.813,0.06161214]
[1672750777031,66.30644812,11.822,11.813,0.06161214]
[1672750777245,49.34644812,11.822,11.813,0.06161214]
[1672750777455,49.34644812,11.822,11.814,16.9]
[1672750777877,49.34644812,11.822,11.815,4.0]
[1672750779130,49.34644812,11.822,11.814,16.9]
[1672750779665,49.34644812,11.822,11.813,0.06161214]
[1672750780086,49.34644812,11.822,11.813,17.03161214]
[1672750782502,0.07034812,11.822,11.813,17.03161214]
[1672750782922,591.89,11.825,11.822,0.04171155]
[1672750783238,16.89,11.825,11.822,0.04171155]
[1672750784182,4.0,11.824,11.819,0.06805369]
[1672750785968,49.89620471,11.823,11.819,5.369e-05]
[1672750786185,16.92,11.82,11.819,5.369e-05]
[1672750786497,16.92,11.82,11.808,20.85]
[1672750787125,4.06889442,11.819,11.81,0.07133037]
[1672750787865,0.0335969,11.81,11.808,20.85]
[1672750790065,0.0335969,11.81,11.808,16.85]
[1672750793225,0.0678647,11.813,11.809,4.0]
[1672750793433,0.0678647,11.813,11.81,16.97]
[1672750793644,0.06862838,11.816,11.811,4.0]
[1672750793855,4.06862838,11.816,11.811,4.0]
[1672750794273,4.06862838,11.816,11.81,16.97]
[1672750794589,0.06862838,11.816,11.81,16.97]
[1672750795117,0.06862838,11.816,11.809,0.06755939]
[1672750795426,4.06862838,11.816,11.809,0.06755939]
[1672750797738,0.06862838,11.816,11.809,0.06755939]
[1672750800465,0.06862838,11.816,11.811,16.88]
[1672750800786,0.06862838,11.816,11.812,4.0]
[1672750803834,575.0,11.821,11.812,4.0]
[1672750804781,16.9,11.829,11.818,4.0]
[1672750804982,4.0,11.828,11.818,4.0]
[1672750805197,0.06937545,11.826,11.818,4.06879483]
[1672750806981,0.06937545,11.826,11.818,0.06879483]
[1672750807196,16.97,11.825,11.818,0.06879483]
[1672750807409,4.0,11.824,11.818,0.06879483]
[1672750809196,20.97,11.825,11.818,0.06879483]
[1672750809716,16.97,11.825,11.818,0.06879483]
[1672750813819,0.06937545,11.826,11.818,0.06879483]
[1672750817813,16.89,11.827,11.826,0.157322]
[1672750825699,4.0,11.826,11.822,0.06122707]
[1672750826013,0.06154444,11.828,11.825,16.97]
[1672750826223,0.06107031,11.831,11.825,4.0]
[1672750826428,0.06045676,11.832,11.825,4.0]
[1672750828008,0.06045676,11.832,11.824,0.06283574]
[1672750830947,0.16674321,11.824,11.823,4.0]
[1672750833261,0.16674321,11.824,11.822,16.9]
[1672750833471,0.16674321,11.824,11.821,16.9]
[1672750833683,0.16674321,11.824,11.822,4.0]
[1672750835049,0.06404105,11.828,11.822,4.0]
[1672750839461,591.97,11.84,11.828,4.0]
[1672750839672,48.9557,11.839,11.828,4.0]
[1672750840409,4.0678507,11.838,11.829,0.06011331]
[1672750840825,0.0678507,11.838,11.829,0.06011331]
[1672750847022,20.8778507,11.838,11.829,0.06011331]
[1672750848917,20.7878507,11.838,11.829,0.06011331]
[1672750851440,16.7878507,11.838,11.829,0.06011331]
[1672750854276,16.56839685,11.838,11.829,0.06011331]
[1672750855219,16.63315302,11.838,11.829,0.06011331]
[1672750875720,16.86,11.831,11.821,16.86]
[1672750876033,4.0,11.83,11.819,4.0]
[1672750876877,0.06551448,11.829,11.82,0.06072656]
[1672750880343,0.06551448,11.829,11.822,16.86]
[1672750880557,16.86,11.836,11.825,16.8]
[1672750881186,4.0,11.835,11.825,16.8]
[1672750881608,0.064697,11.834,11.826,0.06447289]
[1672750881811,0.064697,11.834,11.826,4.06447289]
[1672750884867,0.064697,11.834,11.826,0.06447289]
[1672750889809,0.064697,11.834,11.826,4.06447289]
[1672750893173,0.064697,11.834,11.829,16.86]
[1672750893385,0.064697,11.834,11.83,4.0]
[1672750893593,47.3094,11.84,11.83,4.0]
[1672750894120,47.3094,11.84,11.83,20.84]
[1672750894642,47.3094,11.84,11.831,0.06661174]
[1672750895907,575.0,11.841,11.832,16.84]
[1672750896118,575.0,11.841,11.833,4.0]
[1672750899484,575.0,11.841,11.832,16.84]
[1672750900955,575.0,11.841,11.833,4.0]
[1672750903373,575.0,11.841,11.835,16.83]
[1672750903584,575.0,11.841,11.836,4.0]
[1672750903795,925.232,11.843,11.836,4.0]
[1672750904003,1896.12820471,11.843,11.836,4.0]
[1672750906212,1846.232,11.843,11.836,4.0]
[1672750906526,48.232,11.843,11.836,4.0]
[1672750906945,48.12722164,11.843,11.836,4.0]
[1672750909362,575.0,11.846,11.838,16.84]
[1672750909577,575.0,11.846,11.839,4.0]
[1672750912727,575.0,11.846,11.838,16.90104393]
[1672750914934,575.0,11.846,11.838,0.06104393]
[1672750915350,16.82,11.839,11.827,16.77]
[1672750915776,4.0,11.838,11.827,16.77]
[1672750916299,0.06104393,11.837,11.828,0.06588439]
[1672750916510,0.06104393,11.837,11.828,4.06588439]
[1672750922921,0.06104393,11.837,11.828,0.06588439]
[1672750928493,0.06104393,11.837,11.828,16.90588439]
[1672750928699,0.06104393,11.837,11.83,16.7]
[1672750928908,0.06104393,11.837,11.831,4.0]
[1672750931436,16.84,11.845,11.833,16.77]
[1672750931642,51.811,11.844,11.834,4.0]
[1672750931852,4.0,11.843,11.834,4.0]
[1672750932586,4.0,11.843,11.834,4.06602906]
[1672750933428,4.0,11.843,11.834,0.06602906]
[1672750936479,51.811,11.844,11.834,0.06602906]
[1672750936683,16.82,11.843,11.834,0.06602906]
[1672750937002,4.0,11.842,11.834,0.06602906]
[1672750939315,20.82,11.843,11.834,0.06602906]
[1672750939629,16.82,11.843,11.834,0.06602906]
[1672750941731,47.811,11.844,11.834,16.90602906]
[1672750944033,47.811,11.844,11.834,16.89602906]
[1672750944248,47.58270011,11.844,11.835,4.0]
[1672750946040,591.71,11.846,11.835,4.0]
[1672750946250,16.71,11.849,11.837,16.83]
[1672750946565,16.71,11.849,11.839,0.06455477]
[1672750956654,16.83,11.846,11.839,0.06455477]
[1672750956964,4.0,11.845,11.839,0.06455477]
[1672750957176,16.75,11.844,11.839,5.477e-05]
[1672750957389,16.71,11.84,11.829,16.83]
[1672750957914,4.0,11.839,11.829,16.83]
[1672750958230,4.0,11.839,11.83,0.06986666]
[1672750958439,0.06455411,11.838,11.83,4.06986666]
[1672750963277,0.06455411,11.838,11.83,0.06986666]
[1672750971367,0.06455411,11.838,11.832,16.69]
[1672750971578,0.06455411,11.838,11.833,4.0]
[1672750972106,50.6728,11.841,11.838,0.13304657]
[1672750982092,16.78,11.844,11.838,0.13304657]
[1672750984096,16.78,11.844,11.835,0.06545968]
[1672750984616,16.5769169,11.844,11.835,0.06545968]
[1672751000703,16.75,11.841,11.835,0.06545968]
[1672751000916,4.0,11.84,11.835,0.06545968]
[1672751001546,53.27,11.84,11.835,0.06545968]
[1672751002704,49.27,11.84,11.835,0.06545968]
[1672751005433,1814.78,11.843,11.835,0.06545968]
[1672751005635,65.4788,11.845,11.835,0.06545968]
[1672751005849,4.0,11.844,11.835,0.06545968]
[1672751009529,65.4788,11.845,11.835,0.06545968]
[1672751026030,16.71,11.845,11.835,0.06545968]
[1672751026343,63.2308,11.848,11.845,0.10976806]
[1672751031394,63.02036962,11.848,11.845,0.10976806]
[1672751035283,46.19036962,11.848,11.845,0.10976806]
[1672751035911,4.0,11.847,11.845,6.806e-05]
[1672751037805,46.19036962,11.848,11.845,6.806e-05]
[1672751040644,16.77,11.85,11.845,6.806e-05]
[1672751042117,16.83,11.852,11.845,6.806e-05]
[1672751042427,4.0,11.851,11.845,6.806e-05]
[1672751044847,20.83,11.852,11.845,6.806e-05]
[1672751046417,4.0,11.851,11.845,6.806e-05]
[1672751046635,16.83,11.85,11.845,6.806e-05]
[1672751046841,4.0,11.849,11.845,6.806e-05]
[1672751047052,46.577,11.848,11.845,6.806e-05]
[1672751047265,4.0,11.847,11.845,6.806e-05]
[1672751049787,46.577,11.848,11.845,6.806e-05]
[1672751060192,46.49389825,11.848,11.845,6.806e-05]
[1672751070277,0.17187276,11.845,11.844,0.06188242]
[1672751070593,0.17187276,11.845,11.84,0.07034783]
[1672751070799,16.83,11.85,11.841,4.0]
[1672751074162,16.83,11.85,11.84,0.07034783]
[1672751084780,16.73286218,11.85,11.84,0.07034783]
[1672751087094,48.106,11.851,11.841,16.7]
[1672751087301,48.106,11.851,11.842,4.0]
[1672751090560,48.106,11.851,11.841,16.7]
[1672751098229,64.886,11.851,11.84,0.07034783]
[1672751107372,48.106,11.851,11.841,16.74]
[1672751107582,48.106,11.851,11.842,4.0]
[1672751110314,48.106,11.851,11.841,16.74]
[1672751110524,64.936,11.851,11.84,0.07034783]
[1672751113674,48.106,11.851,11.84,0.07034783]
[1672751113889,48.106,11.851,11.842,16.79]
[1672751114094,16.75,11.852,11.843,4.0]
[1672751114301,16.75,11.852,11.843,4.068216]
[1672751114516,46.2952,11.856,11.845,16.75]
[1672751114833,46.2952,11.856,11.846,4.0]
[1672751115146,46.2952,11.856,11.847,0.06244119]
[1672751118196,46.19317123,11.856,11.847,0.06244119]
[1672751118511,16.83,11.857,11.847,0.06244119]
[1672751119245,16.75,11.86,11.848,16.79]
[1672751119457,16.75,11.86,11.85,0.06328182]
[1672751120822,591.71,11.863,11.852,4.0]
[1672751121033,2389.71,11.863,11.853,0.06601728]
[1672751125235,16.71,11.863,11.853,0.06601728]
[1672751125657,16.83,11.865,11.853,16.85601728]
[1672751125867,4.0,11.864,11.855,0.07094841]
[1672751126803,16.83,11.865,11.855,0.07094841]
[1672751127231,50.7691,11.867,11.857,4.0]
[1672751127438,50.7691,11.867,11.858,0.06096222]
[1672751131958,50.7691,11.867,11.859,16.79]
[1672751132276,64.6052,11.871,11.86,4.0]
[1672751132487,64.6052,11.871,11.861,0.06819151]
[1672751132795,47.8352,11.871,11.861,0.06819151]
[1672751133010,4.0,11.868,11.861,0.06819151]
[1672751135636,16.75,11.869,11.861,0.06819151]
[1672751147937,47.8352,11.871,11.861,0.06819151]
[1672751160441,591.71,11.872,11.861,0.06819151]
[1672751161700,16.71,11.872,11.861,0.06819151]
[1672751163385,66.64620471,11.875,11.862,16.75]
[1672751163596,66.64620471,11.875,11.864,0.06482765]
[1672751164745,16.75,11.875,11.864,0.06482765]
[1672751164961,66.64620471,11.875,11.864,0.06482765]
[1672751165272,16.75,11.875,11.864,0.06482765]
[1672751165480,16.7,11.878,11.867,16.71]
[1672751165690,877.0,11.892,11.878,0.09332308]
[1672751165691,64.2173,11.881,11.878,0.09332308]
[1672751165906,16.8,11.881,11.878,0.09332308]
[1672751166643,64.2473,11.884,11.878,0.09332308]
[1672751166951,16.83,11.882,11.878,0.09332308]
[1672751167165,47.4173,11.894,11.878,0.09332308]
[1672751167376,4.0,11.893,11.882,0.06824376]
[1672751168325,47.4173,11.894,11.882,0.06824376]
[1672751168640,16.75,11.89,11.882,0.06824376]
[1672751168851,4.0,11.893,11.878,0.09332308]
[1672751168852,16.83,11.884,11.878,0.09332308]
[1672751169061,16.83,11.882,11.878,0.09332308]
[1672751169269,4.0,11.886,11.878,0.09332308]
[1672751169691,16.75,11.887,11.878,0.09332308]
[1672751169900,16.81458712,11.887,11.878,0.15674409]
[1672751171480,0.06458712,11.887,11.879,4.0]
[1672751173899,0.06458712,11.887,11.878,0.15674409]
[1672751176839,16.75,11.886,11.878,0.15674409]
[1672751177049,4.0,11.885,11.878,0.15674409]
[1672751178418,16.83,11.88,11.878,0.15674409]
[1672751178625,4.0,11.879,11.869,4.0]
[1672751179154,16.8,11.877,11.865,16.7]
[1672751179467,4.0,11.874,11.868,0.06511205]
[1672751180202,16.83,11.875,11.868,0.06511205]
[1672751183565,0.07098794,11.876,11.868,0.06511205]
[1672751186927,0.07098794,11.876,11.869,16.64]
[1672751187136,0.07098794,11.876,11.87,4.0]
[1672751187558,0.07098794,11.876,11.869,16.64]
[1672751187976,0.07098794,11.876,11.868,0.06511205]
[1672751188185,16.69,11.875,11.868,0.06511205]
[1672751188393,4.0,11.874,11.868,0.06511205]
[1672751189764,16.74,11.872,11.868,0.06511205]
[1672751189976,16.58,11.874,11.868,0.06511205]
[1672751190283,4.0,11.873,11.868,0.06511205]
[1672751190919,4.0,11.873,11.862,16.57]
[1672751192077,0.06494197,11.872,11.863,0.06763386]
[1672751192287,0.06494197,11.872,11.863,4.06763386]
[1672751195753,0.06494197,11.872,11.863,0.06763386]
[1672751204368,16.58,11.874,11.872,0.08657528]
[1672751204575,4.0,11.873,11.864,4.0]
[1672751205316,4.06702046,11.873,11.864,4.0706041]
[1672751205520,4.06702046,11.873,11.864,0.0706041]
[1672751207941,0.06702046,11.873,11.864,16.7106041]
[1672751210679,0.06702046,11.873,11.867,16.7]
[1672751211202,0.06702046,11.873,11.868,4.0]
[1672751212145,0.06702046,11.873,11.867,16.7]
[1672751212885,0.06702046,11.873,11.865,16.64]
[1672751213307,0.06702046,11.873,11.866,4.0]
[1672751214043,0.06702046,11.873,11.864,0.0706041]
[1672751218665,0.06702046,11.873,11.865,16.62]
[1672751218876,0.06702046,11.873,11.866,4.0]
[1672751220874,0.06702046,11.873,11.865,16.62]
[1672751221506,0.06702046,11.873,11.866,4.0]
[1672751222452,0.06702046,11.873,11.864,0.0706041]
[1672751224446,591.58,11.883,11.871,16.74]
[1672751224656,49.2886,11.882,11.872,4.0]
[1672751224867,4.0,11.881,11.872,4.0]
[1672751225394,49.2886,11.882,11.872,4.0]
[1672751225598,0.06137437,11.881,11.873,0.06442483]
[1672751225808,4.06137437,11.881,11.873,0.06442483]
[1672751226024,0.06137437,11.881,11.873,0.06442483]
[1672751226968,0.06137437,11.881,11.874,16.62]
[1672751227179,0.06137437,11.881,11.875,4.0]
[1672751228650,0.06137437,11.881,11.874,16.62]
[1672751228967,0.06137437,11.881,11.875,4.0]
[1672751233911,0.06137437,11.881,11.873,0.06442483]
[1672751234439,0.06137437,11.881,11.875,16.74]
[1672751234644,0.06137437,11.881,11.876,4.0]
[1672751238638,16.69,11.887,11.881,0.16641597]
[1672751240850,16.74,11.889,11.881,0.16641597]
[1672751241056,4.0,11.888,11.881,0.16641597]
[1672751242422,53.8458,11.888,11.881,0.16641597]
[1672751245785,16.74,11.887,11.881,0.16641597]
[1672751245993,4.0,11.886,11.881,0.16641597]
[1672751248406,20.74,11.887,11.881,0.16641597]
[1672751249149,16.74,11.887,11.881,0.16641597]
[1672751249357,49.8458,11.888,11.881,0.16641597]
[1672751255347,16.58,11.887,11.881,0.16641597]
[1672751255558,4.0,11.886,11.881,0.16641597]
[1672751255769,49.8458,11.888,11.881,0.16641597]
[1672751255978,49.69574122,11.888,11.881,4.16641597]
[1672751256925,49.69574122,11.888,11.881,0.16641597]
[1672751257135,16.74,11.887,11.881,0.16641597]
[1672751257445,16.69,11.882,11.881,0.16641597]
[1672751259025,16.74,11.885,11.881,0.16641597]
[1672751265857,16.74,11.888,11.881,0.16641597]
[1672751266591,20.65,11.891,11.881,0.16641597]
[1672751268066,20.65,11.891,11.88,0.07039511]
[1672751270690,16.65,11.891,11.88,0.07039511]
[1672751274273,16.71,11.888,11.88,0.07039511]
[1672751274480,4.0,11.887,11.88,0.07039511]
[1672751274795,16.71,11.888,11.88,0.07039511]
[1672751275111,4.0,11.887,11.88,0.07039511]
[1672751275629,49.89620471,11.886,11.88,0.07039511]
[1672751275846,16.74,11.883,11.88,0.07039511]
[1672751276062,16.74,11.883,11.877,0.06970136]
[1672751276265,16.74,11.883,11.876,0.06883828]
[1672751278474,49.7311,11.884,11.876,0.06883828]
[1672751281629,4.0,11.883,11.876,0.06883828]
[1672751281833,16.65,11.88,11.876,0.06883828]
[1672751282045,4.0,11.879,11.876,0.06883828]
[1672751282259,4.0,11.879,11.873,0.0601145]
[1672751282468,4.0,11.879,11.872,0.06363973]
[1672751282680,50.2872,11.879,11.872,0.06363973]
[1672751286148,67.0272,11.879,11.872,0.06363973]
[1672751286349,16.59,11.876,11.872,3.973e-05]
[1672751286979,4.0,11.875,11.872,3.973e-05]
[1672751287193,4.0,11.875,11.864,4.0]
[1672751287407,0.06704068,11.874,11.863,66.6]
[1672751287618,0.06704068,11.874,11.865,0.06230348]
[1672751288352,16.80704068,11.874,11.865,0.06230348]
[1672751292350,16.74,11.871,11.865,0.06230348]
[1672751292559,4.0,11.87,11.865,0.06230348]
[1672751293406,4.0,11.87,11.855,4.0]
[1672751293407,16.74,11.866,11.843,50.0]
[1672751293613,16.57,11.856,11.844,4.0]
[1672751294038,4.0,11.855,11.844,4.0]
[1672751294249,4.0,11.855,11.845,16.67]
[1672751294563,0.06705386,11.854,11.846,4.06294606]
[1672751295715,4.0,11.865,11.853,16.74]
[1672751295929,4.0,11.865,11.854,4.0]
[1672751296558,4.0,11.865,11.853,66.74]
[1672751296765,0.0622903,11.863,11.855,0.06946641]
[1672751297716,16.8022903,11.863,11.855,0.06946641]
[1672751297925,4.0,11.862,11.855,0.06946641]
[1672751298872,50.8473,11.862,11.855,0.06946641]
[1672751299293,67.5273,11.862,11.855,0.06946641]
[1672751303073,0.0622903,11.863,11.855,0.06946641]
[1672751307067,0.0622903,11.863,11.858,16.79]
[1672751307590,0.0622903,11.863,11.859,4.0]
[1672751308011,0.0622903,11.863,11.858,16.79]
[1672751309692,48.682,11.866,11.863,0.05435848]
[1672751311371,16.79,11.87,11.863,0.05435848]
[1672751311581,50.0614,11.872,11.863,0.05435848]
[1672751311786,4.0,11.871,11.863,0.12286677]
[1672751316417,50.0614,11.872,11.863,0.12286677]
[1672751320621,0.07776241,11.863,11.861,16.78]
[1672751320830,16.79,11.878,11.862,4.0]
[1672751321041,4.0,11.877,11.868,16.78]
[1672751321350,4.0,11.877,11.869,4.0]
[1672751321568,4.0,11.878,11.869,4.0]
[1672751321780,0.06716804,11.877,11.869,4.06740462]
[1672751328294,0.06716804,11.877,11.869,0.06740462]
[1672751334602,45.9895,11.879,11.877,0.03595121]
[1672751339756,45.9895,11.879,11.874,0.06969114]
[1672751339962,4.0,11.878,11.874,0.06969114]
[1672751342383,45.9895,11.879,11.874,0.06969114]
[1672751343221,16.73,11.876,11.863,66.73]
[1672751343430,66.62620471,11.876,11.863,16.73]
[1672751343639,16.59,11.873,11.864,4.0]
[1672751343849,4.0,11.872,11.864,4.0]
[1672751344168,4.06281137,11.872,11.864,4.06889649]
[1672751345113,4.06281137,11.872,11.864,0.06889649]
[1672751348800,54.65491137,11.872,11.864,0.06889649]
[1672751349110,50.65491137,11.872,11.864,0.06889649]
[1672751349740,0.06281137,11.872,11.865,16.73]
[1672751349947,0.06281137,11.872,11.866,4.0]
[1672751351526,0.06281137,11.872,11.865,16.73]
[1672751351736,0.06281137,11.872,11.864,0.06889649]
[1672751352998,16.59,11.87,11.864,0.06889649]
[1672751353311,4.0,11.869,11.864,9.649e-05]
[1672751353730,16.6,11.866,11.864,9.649e-05]
[1672751353944,16.6,11.866,11.854,16.7]
[1672751354151,4.0,11.869,11.851,16.73]
[1672751354152,4.0,11.865,11.851,16.73]
[1672751354367,0.06790941,11.862,11.854,0.06914425]
[1672751354884,4.06790941,11.862,11.854,0.06914425]
[1672751358779,49.93730941,11.862,11.854,0.06914425]
[1672751365397,45.93730941,11.862,11.854,0.06914425]
[1672751369188,45.71369573,11.862,11.854,50.06914425]
[1672751369604,45.71369573,11.862,11.855,4.0]
[1672751370029,16.73,11.865,11.855,4.0]
[1672751370234,0.06548838,11.864,11.855,4.0]
[1672751370450,4.06548838,11.864,11.855,20.71]
[1672751370654,0.06548838,11.864,11.855,20.71]
[1672751371815,0.06548838,11.864,11.86,16.73]
[1672751372131,16.68,11.874,11.863,50.0]
[1672751372336,4.0,11.873,11.864,20.73]
[1672751372760,4.0,11.873,11.865,4.0]
[1672751372970,4.0,11.873,11.865,4.06322975]
[1672751373187,4.0,11.875,11.865,4.06322975]
[1672751374858,4.0,11.872,11.865,0.06322975]
[1672751376965,16.59,11.873,11.865,0.06322975]
[1672751384636,16.47492939,11.873,11.865,0.06322975]
[1672751386634,16.73,11.877,11.865,16.68322975]
[1672751386842,4.0,11.876,11.866,4.0]
[1672751388004,62.2938,11.878,11.866,4.0]
[1672751388214,62.2938,11.878,11.868,0.06658558]
[1672751389370,4.0,11.877,11.868,0.06658558]
[1672751389685,16.63,11.876,11.868,0.06658558]
[1672751389896,16.68,11.874,11.868,0.06658558]
[1672751390316,16.6,11.869,11.858,16.7]
[1672751390842,4.0,11.868,11.858,16.7]
[1672751391366,16.76068628,11.867,11.859,0.06298033]
[1672751391575,4.0,11.866,11.859,0.06569566]
[1672751392311,0.06068628,11.867,11.859,0.06569566]
[1672751396297,16.59,11.866,11.859,0.06569566]
[1672751396512,4.0,11.865,11.859,0.06569566]
[1672751397669,64.2013,11.866,11.859,0.06569566]
[1672751398931,0.06068628,11.867,11.859,0.06569566]
[1672751402712,0.06068628,11.867,11.863,50.0]
[1672751403025,0.00068628,11.867,11.863,50.0]
[1672751403235,0.00068628,11.867,11.864,4.0]
[1672751403446,66.0717,11.876,11.864,4.0]
[1672751404073,66.0717,11.876,11.866,0.06190898]
[1672751404600,16.73,11.874,11.866,0.06190898]
[1672751404917,4.0,11.873,11.866,0.06190898]
[1672751408698,16.73,11.874,11.866,0.06190898]
[1672751413006,49.3417,11.876,11.866,0.06190898]
[1672751417844,49.20147343,11.876,11.866,4.06190898]
[1672751422573,49.20147343,11.876,11.866,0.06190898]
[1672751431827,0.01653724,11.866,11.865,16.62]
[1672751432350,575.0,11.874,11.866,4.0]
[1672751432975,575.07036724,11.874,11.866,4.06874358]
[1672751434661,575.07036724,11.874,11.866,0.06874358]
[1672751441704,591.75036724,11.874,11.866,0.06874358]
[1672751446118,591.63922341,11.874,11.866,0.06874358]
[1672751446851,16.75036724,11.874,11.866,0.06874358]
[1672751457783,16.75036724,11.874,11.87,3500.0]
[1672751458098,16.75036724,11.874,11.871,4.0]
[1672751458301,16.68,11.874,11.871,4.0]
[1672751459360,65.90147343,11.876,11.871,4.0]
[1672751459672,16.7,11.876,11.87,3500.0]
[1672751465663,16.63,11.874,11.87,3500.0]
[1672751477639,16.69113051,11.877,11.87,3500.0]
[1672751480580,16.5711658,11.877,11.871,4.0]
[1672751482999,16.63,11.879,11.871,4.0]
[1672751483312,4.0,11.878,11.87,3500.0]
[1672751483943,20.63,11.879,11.87,3500.0]
[1672751484153,16.63,11.879,11.87,3500.0]
[1672751488570,16.74,11.877,11.87,3500.0]
[1672751488884,4.0,11.876,11.87,3500.0]
[1672751489617,16.74,11.877,11.87,3500.0]
[1672751514741,4.0,11.876,11.87,3499.8672449]
[1672751515476,16.74,11.877,11.87,3499.8672449]
[1672751518842,16.63,11.875,11.87,3499.8672449]
[1672751519157,4.0,11.874,11.87,3499.8672449]
[1672751522415,16.65,11.872,11.87,3499.8672449]
[1672751522622,16.65,11.872,11.87,3388.2425449]
[1672751522836,16.74,11.871,11.87,2834.81196327]
[1672751523153,16.74,11.871,11.87,2758.73236327]
[1672751523464,16.74,11.871,11.87,2682.65356327]
[1672751523670,16.74,11.871,11.87,2666.26166327]
[1672751560148,1798.0,11.873,11.87,2666.26166327]
[1672751564883,1632.89870699,11.873,11.871,4.0]
[1672751565094,1632.89870699,11.873,11.87,2666.26166327]
[1672751571087,1625.53660699,11.873,11.87,2666.26166327]
[1672751576857,16.71,11.872,11.87,2666.26166327]
[1672751581176,1227.94502854,11.873,11.871,4.0]
[1672751581384,16.74,11.876,11.871,4.0]